bitfinex/quotes_ETHUSD_20241101
["timestamp","ask_amount","ask_price","bid_price","bid_amount"]
[1730458875171,3.96778,2520.3,2519.9,0.7586]
[1730458877073,7.93567,2520.3,2519.9,0.7586]
[1730458877278,0.79450224,2520.2,2519.9,0.7586]
[1730458877488,7.93567,2520.3,2519.9,0.7586]
[1730458878153,3.96778,2520.3,2519.9,0.7586]
[1730458878367,3.96825,2520.0,2519.7,0.8024]
[1730458878752,3.96848,2519.9,2519.7,0.8024]
[1730458879348,3.96825,2520.0,2519.7,0.8024]
[1730458879548,3.96851,2519.9,2519.7,0.8024]
[1730458881280,5.58809858,2520.2,2519.7,0.8024]
[1730458881449,3.96825,2520.0,2519.7,0.8024]
[1730458881954,3.96843,2519.9,2519.7,0.8024]
[1730458882255,3.96825,2520.0,2519.7,0.8024]
[1730458882256,7.9366,2520.0,2519.7,0.8024]
[1730458882484,3.96842,2519.9,2519.7,0.8024]
[1730458883143,3.96856,2519.8,2519.7,0.8024]
[1730458883353,3.96842,2519.9,2519.5,0.7848]
[1730458883569,3.96834,2520.0,2519.5,4.75372]
[1730458884144,9.55610858,2520.2,2519.7,4.75343]
[1730458884383,9.55610858,2520.2,2519.6,4.75368]
[1730458884384,3.96816,2520.1,2519.6,4.75368]
[1730458884766,3.96816,2520.1,2519.6,4.75359]
[1730458885252,3.96827,2520.0,2519.6,4.75359]
[1730458885454,3.96827,2520.0,2519.6,0.7848]
[1730458885994,7.93665,2520.0,2519.6,0.7848]
[1730458886445,3.96827,2520.0,2519.6,0.7848]
[1730458886645,3.96827,2520.0,2519.6,4.75367]
[1730458886944,3.96827,2520.0,2519.6,0.7848]
[1730458887990,3.96827,2520.0,2519.6,4.75366]
[1730458889053,3.96827,2520.0,2519.6,0.7848]
[1730458890898,3.96827,2520.0,2519.3,0.8268]
[1730458890899,0.8242,2519.9,2519.3,0.8268]
[1730458891104,3.96825,2520.0,2519.5,2.64279858]
[1730458891256,3.0,2519.9,2519.5,6.61176858]
[1730458891450,3.96825,2520.0,2519.6,3.96885]
[1730458891696,3.96825,2520.0,2519.7,0.8268]
[1730458891859,3.96802,2520.2,2519.8,4.79536]
[1730458892741,3.96762,2520.4,2519.9,3.96838]
[1730458892946,3.96747,2520.5,2520.1,3.96807]
[1730458893099,3.0,2520.4,2520.2,0.8263]
[1730458894343,6.96749,2520.5,2520.2,0.8263]
[1730458894496,8.142251,2520.5,2520.2,0.8263]
[1730458894696,6.96749,2520.5,2520.2,0.8263]
[1730458895319,3.0,2520.5,2520.2,0.8263]
[1730458896635,3.0,2520.5,2520.2,0.82510621]
[1730458897525,6.96747,2520.5,2520.2,0.82510621]
[1730458898045,6.96747,2520.5,2520.2,4.79299621]
[1730458898046,3.0,2520.5,2520.2,4.79299621]
[1730458898227,3.0,2520.7,2520.3,4.44694962]
[1730458898531,3.0,2520.7,2520.3,3.96765]
[1730458899342,3.0,2520.7,2520.4,0.62935119]
[1730458899545,5.78276858,2521.0,2520.5,0.7735]
[1730458899546,6.96696,2520.9,2520.5,0.7735]
[1730458900741,3.0,2520.9,2520.5,0.7735]
[1730458900972,3.96677,2521.0,2520.6,0.7735]
[1730458901274,3.96677,2521.0,2520.6,4.74079]
[1730458901637,7.93353,2521.0,2520.6,0.7735]
[1730458902040,3.96676,2521.0,2520.6,0.7735]
[1730458902635,3.96686,2520.9,2520.6,0.7735]
[1730458902872,3.96676,2521.0,2520.6,0.7735]
[1730458903836,7.93357,2521.0,2520.6,0.7735]
[1730458904071,3.96676,2521.0,2520.6,0.7735]
[1730458904259,3.96692,2520.9,2520.6,0.7735]
[1730458908418,1.81599858,2520.8,2520.3,0.7659]
[1730458908619,5.78307858,2520.8,2520.3,0.7659]
[1730458909874,3.96731,2520.6,2520.3,0.7659]
[1730458910814,3.96722,2520.7,2520.3,0.7659]
[1730458911194,6.82129424,2520.8,2520.3,0.7659]
[1730458911395,3.96731,2520.6,2520.3,0.7659]
[1730458912425,3.96715,2520.7,2520.3,0.7659]
[1730458915642,3.96715,2520.7,2520.3,4.73365]
[1730458916045,3.96715,2520.7,2520.3,0.7659]
[1730458916349,7.93444,2520.7,2520.3,0.7659]
[1730458916712,3.96715,2520.7,2520.3,0.7659]
[1730458916912,7.93438,2520.7,2520.3,0.7659]
[1730458917214,3.96715,2520.7,2520.3,0.7659]
[1730458917521,3.96715,2520.7,2520.3,4.73365]
[1730458917907,5.00519566,2520.8,2520.3,4.73365]
[1730458918107,7.93326,2521.1,2520.6,0.8234]
[1730458918311,3.96662,2521.1,2520.7,0.8234]
[1730458918633,3.96669,2521.0,2520.7,0.8234]
[1730458920222,3.96662,2521.1,2520.7,0.8234]
[1730458920643,3.96669,2521.0,2520.7,0.8234]
[1730458921578,5.78246858,2521.2,2520.7,0.8234]
[1730458921723,3.96647,2521.2,2520.9,0.7795]
[1730458922240,3.96622,2521.3,2520.9,0.7795]
[1730458922853,3.96622,2521.3,2520.9,4.74633]
[1730458923231,3.96615,2521.4,2520.9,0.7795]
[1730458923551,4.362815,2521.3,2520.9,0.7795]
[1730458923754,3.9662,2521.3,2520.9,4.74633]
[1730458924320,3.96605,2521.4,2521.0,4.7767]
[1730458924533,3.96605,2521.4,2521.0,0.8101]
[1730458924957,3.9663,2521.3,2521.0,0.8101]
[1730458925518,3.96638,2521.2,2521.0,0.8101]
[1730458925918,3.96629,2521.3,2521.0,0.8101]
[1730458927044,3.96638,2521.2,2521.0,0.8101]
[1730458928561,3.96692,2520.9,2520.6,0.7912]
[1730458928723,6.96671,2521.0,2520.6,0.7912]
[1730458929635,6.96671,2521.0,2520.6,2.60719858]
[1730458929832,3.96659,2521.1,2520.7,0.7543]
[1730458930425,3.96676,2521.0,2520.7,0.7543]
[1730458930867,3.96647,2521.2,2520.7,0.7543]
[1730458931427,3.96663,2521.1,2520.7,0.7543]
[1730458932264,3.96647,2521.2,2521.0,0.7543]
[1730458935084,3.96586,2521.6,2521.0,2.57029858]
[1730458935286,3.96586,2521.6,2521.2,0.762]
[1730458935489,3.96558,2521.7,2521.2,4.72835]
[1730458935872,1.81599858,2521.8,2521.2,0.762]
[1730458936048,3.96582,2521.6,2521.2,0.762]
[1730458936481,3.96551,2521.8,2521.3,3.9662]
[1730458936683,3.96551,2521.8,2521.4,0.762]
[1730458937989,3.96526,2521.9,2521.4,4.72803]
[1730458938349,3.96526,2521.9,2521.5,0.8331]
[1730458938553,3.96544,2521.8,2521.5,0.8331]
[1730458938791,3.17074244,2521.8,2521.1,1.3831]
[1730458939090,3.96629,2521.3,2521.1,0.8331]
[1730458939251,3.96636,2521.2,2521.1,0.8331]
[1730458939597,3.96636,2521.2,2520.9,0.972]
[1730458939999,3.9662,2521.3,2520.9,0.972]
[1730458940157,3.9662,2521.3,2520.9,4.93882]
[1730458940352,4.81599858,2521.6,2521.0,0.772]
[1730458940555,3.96627,2521.3,2521.0,0.772]
[1730458941560,3.96636,2521.2,2521.0,0.772]
[1730458942687,3.96621,2521.3,2521.0,0.772]
[1730458942901,3.96607,2521.4,2521.0,0.772]
[1730458942902,3.0,2521.4,2521.0,0.772]
[1730458943098,6.96605,2521.4,2521.0,0.772]
[1730458943458,3.96605,2521.4,2521.0,0.772]
[1730458943657,3.96636,2521.2,2521.0,0.772]
[1730458944267,3.96623,2521.3,2521.0,0.772]
[1730458946700,3.96601,2521.5,2521.0,0.772]
[1730458946860,3.96601,2521.5,2521.1,0.7994]
[1730458946861,7.93202,2521.5,2521.1,0.7994]
[1730458947058,3.96601,2521.5,2521.1,0.7994]
[1730458947386,6.96569,2521.7,2521.1,0.87872599]
[1730458947707,6.96569,2521.7,2521.2,4.76575]
[1730458947708,3.96583,2521.6,2521.2,4.76575]
[1730458948063,3.96554,2521.8,2521.4,3.96603]
[1730458948268,3.96554,2521.8,2521.4,4.75043]
[1730458948468,3.96513,2522.0,2521.5,0.7844]
[1730458948665,3.96536,2521.9,2521.5,0.7844]
[1730458949193,3.96544,2521.8,2521.5,0.7844]
[1730458949808,0.1241306,2522.4,2521.7,0.7891]
[1730458949983,3.96518,2522.0,2521.7,0.7891]
[1730458950173,3.96534,2521.9,2521.7,0.7891]
[1730458951014,3.96542,2521.8,2521.7,0.7891]
[1730458951668,3.96565,2521.7,2521.4,0.7786]
[1730458952619,4.758473,2521.8,2521.4,0.7786]
[1730458952977,3.96542,2521.8,2521.4,0.7786]
[1730458953132,4.73401,2522.0,2521.4,4.74456]
[1730458953133,3.96535,2521.9,2521.4,4.74456]
[1730458953942,3.96518,2522.0,2521.5,3.96587]
[1730458954233,3.96518,2522.0,2521.6,0.7691]
[1730458954431,7.93041,2522.0,2521.6,0.7691]
[1730458954592,3.96539,2521.9,2521.6,0.7691]
[1730458955228,3.96518,2522.0,2521.6,0.7691]
[1730458955902,3.96518,2522.0,2521.6,4.7348]
[1730458956102,3.96484,2522.2,2521.6,5.604874]
[1730458956414,3.96513,2522.0,2521.6,4.73476]
[1730458956622,3.96513,2522.0,2521.6,0.7691]
[1730458957336,3.96549,2521.8,2521.6,0.7691]
[1730458957523,7.93101,2521.8,2521.6,0.7691]
[1730458957729,3.96549,2521.8,2521.6,0.7691]
[1730458958248,3.96521,2522.0,2521.6,4.73481]
[1730458958400,3.96521,2522.0,2521.6,4.81411584]
[1730458958601,3.96521,2522.0,2521.6,5.61281858]
[1730458959143,3.96503,2522.1,2521.6,5.61273858]
[1730458959639,3.96503,2522.1,2521.7,0.7763]
[1730458960050,3.96464,2522.3,2521.9,0.8261]
[1730458960344,0.1241306,2522.4,2522.2,0.8261]
[1730458963448,0.1241306,2522.4,2522.3,0.55]
[1730458965015,0.1241306,2522.4,2522.3,4.51463]
[1730458965339,0.1241306,2522.4,2522.3,5.445173]
[1730458965540,0.1241306,2522.4,2522.3,1.480543]
[1730458966038,0.1241306,2522.4,2522.3,2.295643]
[1730458966249,0.1241306,2522.4,2522.3,0.8151]
[1730458966412,0.1241306,2522.4,2522.1,0.753]
[1730458967306,4.0886106,2522.4,2522.1,0.753]
[1730458967609,0.1241306,2522.4,2522.1,0.753]
[1730458968707,4.0887406,2522.4,2522.1,0.753]
[1730458972050,0.1241306,2522.4,2522.1,0.753]
[1730458972251,0.1241306,2522.4,2522.1,0.83229081]
[1730458972610,0.1241306,2522.4,2522.1,0.753]
[1730458972816,0.1241306,2522.4,2522.1,0.83229082]
[1730458973017,0.1241306,2522.4,2522.1,4.79722082]
[1730458973219,0.1241306,2522.4,2522.1,5.51323483]
[1730458973442,0.1241306,2522.4,2522.1,1.54830483]
[1730458974526,0.1241306,2522.4,2522.1,2.6082241]
[1730458974730,0.1241306,2522.4,2522.3,1.81291927]
[1730458974964,0.1241306,2522.4,2522.3,7.22883603]
[1730458975125,0.1241306,2522.4,2522.3,7.14954927]
[1730458975847,0.1241306,2522.4,2522.3,5.33663]
[1730458977244,0.1241306,2522.4,2522.3,1.372]
[1730458977619,0.1241306,2522.4,2522.0,3.96497]
[1730458977620,0.1241306,2522.4,2522.1,1.3071]
[1730458977832,0.1241306,2522.4,2522.1,5.27197]
[1730458979224,0.1241306,2522.4,2522.1,1.3071]
[1730458979423,0.1241306,2522.4,2522.1,5.27203]
[1730458979821,0.1241306,2522.4,2522.1,1.3071]
[1730458980522,3.96495,2522.1,2521.7,0.7706]
[1730458980723,4.75162,2522.3,2521.8,3.96534]
[1730458980964,0.1241306,2522.4,2522.0,3.96502]
[1730458982024,4.0886206,2522.4,2522.0,0.55]
[1730458982224,0.1241306,2522.4,2522.0,0.55]
[1730458982425,4.0886106,2522.4,2522.0,4.51502]
[1730458982931,4.0886106,2522.4,2521.8,0.7706]
[1730458982932,3.96463,2522.3,2521.8,0.7706]
[1730458983132,4.0887206,2522.4,2521.9,3.96518]
[1730458984161,4.0887206,2522.4,2522.0,3.96507]
[1730458985358,0.1241306,2522.4,2522.0,3.9651]
[1730458985565,4.0886506,2522.4,2522.0,3.9651]
[1730458986246,0.1241306,2522.4,2522.0,3.9651]
[1730458987659,4.0886306,2522.4,2522.0,3.9651]
[1730458988036,0.1241306,2522.4,2522.1,3.96491]
[1730458989533,0.1241306,2522.4,2522.0,3.9651]
[1730458989732,0.1241306,2522.4,2522.0,7.93014]
[1730458990180,4.0886006,2522.4,2522.0,3.96504]
[1730458990583,4.0886006,2522.4,2522.0,3.96502]
[1730458991873,0.1241306,2522.4,2522.0,4.55174368]
[1730458992168,0.1241306,2522.4,2522.3,3.96463]
[1730458996636,0.1241306,2522.4,2522.1,1.3211]
[1730458996847,0.1241306,2522.4,2522.3,3.96463]
[1730458997048,0.1241306,2522.4,2522.2,3.96467]
[1730458997293,0.1241306,2522.4,2522.3,3.96463]
[1730458998379,0.1241306,2522.4,2522.3,4.88967]
[1730458999953,0.1241306,2522.4,2522.1,4.73602]
[1730459000153,0.1241306,2522.4,2522.0,3.96507]
[1730459000454,4.0886806,2522.4,2522.0,3.96507]
[1730459003373,0.1241306,2522.4,2522.1,3.96494]
[1730459004198,0.1241306,2522.4,2522.3,4.77063]
[1730459004395,0.1241306,2522.4,2522.3,5.98689766]
[1730459005299,0.1241306,2522.4,2522.3,6.06617848]
[1730459005460,0.1241306,2522.4,2522.3,7.09468926]
[1730459005801,0.1241306,2522.4,2522.3,7.92359885]
[1730459006002,0.1241306,2522.4,2522.3,7.84431803]
[1730459006794,0.1241306,2522.4,2522.3,7.01446342]
[1730459006996,0.1241306,2522.4,2522.3,7.01446227]
[1730459010795,0.1241306,2522.4,2522.3,10.69544899]
[1730459011527,0.1241306,2522.4,2522.3,10.69420164]
[1730459013321,0.1241306,2522.4,2522.3,10.69460045]
[1730459014116,0.1241306,2522.4,2522.3,10.69458734]
[1730459014897,0.1241306,2522.4,2522.3,10.69462277]
[1730459015608,0.1241306,2522.4,2522.3,9.66788438]
[1730459015789,0.1241306,2522.4,2522.3,10.69406741]
[1730459016429,0.1241306,2522.4,2522.3,10.69407353]
[1730459017917,0.1241306,2522.4,2522.3,9.66788438]
[1730459018234,0.1241306,2522.4,2522.3,5.98689766]
[1730459019149,3.96289,2523.5,2522.7,0.7531]
[1730459019328,3.96313,2523.3,2522.9,4.51368]
[1730459019503,4.77003,2523.3,2522.9,4.51368]
[1730459019926,8.73322,2523.3,2522.9,0.55]
[1730459020116,3.96339,2523.1,2522.9,0.55]
[1730459020322,0.8069,2523.3,2522.6,3.96407]
[1730459020323,0.8069,2523.3,2522.6,0.828]
[1730459020561,0.8247,2522.9,2522.6,0.55]
[1730459020740,0.8247,2522.9,2522.6,5.10818098]
[1730459022030,3.96293,2523.4,2522.9,0.7696]
[1730459022234,3.96293,2523.4,2522.9,4.81249297]
[1730459022431,3.96293,2523.4,2522.9,4.73322]
[1730459022810,3.96314,2523.3,2522.9,0.07926301]
[1730459023905,3.96314,2523.3,2522.8,3.96375]
[1730459023906,0.8327,2523.2,2522.8,3.96375]
[1730459024149,0.8327,2523.2,2522.9,3.96367]
[1730459024313,3.96245,2523.7,2522.2,4.9243511]
[1730459024314,0.7809,2523.1,2522.2,4.9243511]
[1730459024514,0.7809,2523.1,2522.2,3.96473]
[1730459024515,0.7809,2522.6,2522.2,3.96473]
[1730459024935,0.7809,2522.6,2522.2,3.96471]
[1730459025164,0.7809,2522.6,2522.4,3.96436]
[1730459025443,0.7618,2522.8,2522.4,4.73682311]
[1730459025749,0.7618,2522.8,2522.5,3.96429]
[1730459026064,3.96316,2523.3,2522.5,3.96429]
[1730459026065,4.72516,2523.2,2522.7,3.96392]
[1730459026346,4.72516,2523.2,2522.8,3.96376]
[1730459026546,0.7618,2523.2,2522.9,3.96364]
[1730459026759,4.72514,2523.2,2522.8,1.16086667]
[1730459027041,3.96367,2523.0,2522.5,4.78942]
[1730459027850,3.96367,2523.0,2522.6,3.96408]
[1730459028146,7.92726,2523.0,2522.6,0.87535]
[1730459028314,3.96363,2523.0,2522.6,0.87535]
[1730459028528,3.96363,2523.0,2522.6,4.83947]
[1730459028735,3.96338,2523.1,2522.6,4.83947]
[1730459029051,3.9636,2523.0,2522.6,4.83947]
[1730459029808,3.9636,2523.0,2522.6,0.87535]
[1730459030912,3.9636,2523.0,2522.6,4.8395]
[1730459031651,3.9636,2523.0,2522.6,0.87535]
[1730459031853,3.9636,2523.0,2522.5,4.78948]
[1730459033352,3.9636,2523.0,2522.6,3.96415]
[1730459034539,7.92725,2523.0,2522.6,3.96415]
[1730459034752,3.9636,2523.0,2522.6,3.96415]
[1730459036136,3.9636,2523.0,2522.6,3.96409]
[1730459037518,7.92721,2523.0,2522.6,3.96409]
[1730459037949,3.96384,2522.8,2522.1,0.7572]
[1730459038153,3.96408,2522.7,2522.2,3.96464]
[1730459038837,3.96419,2522.6,2522.0,3.965]
[1730459039181,4.78967,2522.5,2522.0,3.965]
[1730459039331,4.78967,2522.5,2522.1,4.757949]
[1730459040423,0.8253,2522.5,2522.2,3.96475]
[1730459040832,4.78968,2522.5,2522.1,4.757949]
[1730459041157,4.78968,2522.5,2522.1,4.757869]
[1730459042335,3.96448,2522.4,2522.1,0.793019]
[1730459042646,0.8253,2522.5,2522.1,0.793019]
[1730459042851,4.78963,2522.5,2522.1,4.757879]
[1730459043460,4.78963,2522.5,2522.1,0.793019]
[1730459043759,3.96456,2522.4,2521.9,5.77739554]
[1730459043960,3.96456,2522.4,2522.0,4.51509]
[1730459044336,3.96464,2522.3,2522.0,0.55]
[1730459044535,3.96456,2522.4,2522.0,0.55]
[1730459044871,3.96476,2522.3,2522.0,0.55]
[1730459045072,3.96456,2522.4,2522.0,0.55]
[1730459045073,3.96456,2522.4,2522.0,4.51501]
[1730459045363,3.9647,2522.3,2522.0,0.55]
[1730459045840,3.96456,2522.4,2522.0,0.55]
[1730459046041,3.96456,2522.4,2522.0,5.22354655]
[1730459046424,1.81220554,2522.7,2522.0,0.55]
[1730459046638,3.96455,2522.4,2522.0,0.55]
[1730459046861,3.96434,2522.5,2522.0,0.55]
[1730459047058,3.96434,2522.5,2522.0,4.51508]
[1730459047271,3.96434,2522.5,2522.0,5.62004455]
[1730459048472,3.96418,2522.6,2522.1,3.96485]
[1730459048658,7.92842,2522.6,2522.1,3.96485]
[1730459049155,3.96433,2522.5,2522.0,5.62003455]
[1730459049553,4.48123,2522.5,2522.0,1.65496455]
[1730459050039,3.96449,2522.4,2522.0,1.65496455]
[1730459050241,1.81220554,2522.3,2521.8,0.7572]
[1730459050443,0.5169,2522.2,2521.8,0.7572]
[1730459050778,0.5169,2522.2,2521.8,4.72254]
[1730459050978,0.5169,2522.2,2521.8,8.68787]
[1730459051189,0.5169,2522.2,2521.9,1.05000755]
[1730459054478,0.5169,2522.2,2521.6,4.72554]
[1730459054479,3.96503,2522.1,2521.6,4.72554]
[1730459054692,7.93006,2522.1,2521.6,3.96564]
[1730459054992,3.96503,2522.1,2521.6,3.96564]
[1730459055349,3.96503,2522.1,2521.6,5.01600955]
[1730459055552,4.48175,2522.2,2521.6,5.01600955]
[1730459055791,4.48175,2522.2,2521.6,8.98166955]
[1730459056091,3.96501,2522.1,2521.6,5.01600955]
[1730459056984,3.9652,2522.0,2521.4,4.72583]
[1730459057188,4.48223,2521.9,2521.5,0.55]
[1730459057692,0.5169,2521.9,2521.5,0.55]
[1730459058052,4.48217,2521.9,2521.5,0.55]
[1730459060702,0.5169,2521.9,2521.5,4.51589]
[1730459062068,0.5169,2521.9,2521.5,0.55]
[1730459062398,4.48219,2521.9,2521.5,0.55]
[1730459064107,0.5169,2521.9,2521.5,0.55]
[1730459064264,4.48216,2521.9,2521.5,0.55]
[1730459064720,0.5169,2521.9,2521.5,4.51588]
[1730459065370,5.77719554,2522.1,2521.5,4.51588]
[1730459065371,3.96499,2522.1,2521.5,7.43347609]
[1730459065704,4.48141,2522.4,2521.9,5.77737554]
[1730459066559,3.9647,2522.3,2521.9,1.81220554]
[1730459067301,3.9647,2522.3,2521.8,4.78327]
[1730459067464,3.9647,2522.3,2521.8,5.83936355]
[1730459068061,0.5169,2522.1,2521.8,1.05609355]
[1730459068300,6.29411554,2522.1,2521.5,5.33372]
[1730459068605,3.96512,2522.0,2521.5,5.33372]
[1730459068791,10.25916554,2522.1,2521.6,3.96573]
[1730459069117,8.44696,2522.1,2521.6,3.96573]
[1730459069266,4.48191,2522.1,2521.6,3.96573]
[1730459069466,4.48191,2522.1,2521.6,5.07691555]
[1730459069701,4.48191,2522.1,2521.6,5.07689555]
[1730459072674,8.44695,2522.1,2521.6,5.07689555]
[1730459072878,4.48191,2522.1,2521.6,5.07689555]
[1730459073677,0.5169,2522.1,2521.7,3.96548]
[1730459073887,0.5169,2522.1,2521.7,5.19565872]
[1730459074107,0.5169,2522.1,2521.7,7.00786426]
[1730459075207,0.5169,2522.4,2522.0,3.96499]
[1730459075409,4.48151,2522.4,2521.9,5.77739554]
[1730459075588,4.48151,2522.4,2521.9,6.95298897]
[1730459075904,4.48151,2522.4,2521.9,6.95297897]
[1730459076105,4.48151,2522.4,2521.9,5.14077343]
[1730459076485,3.96465,2522.3,2521.9,5.14077343]
[1730459077570,3.96485,2522.2,2521.8,0.7829]
[1730459077777,3.96465,2522.3,2521.7,0.55]
[1730459077778,4.48195,2522.1,2521.7,0.55]
[1730459077971,3.96515,2522.0,2521.7,0.55]
[1730459078579,4.48188,2522.1,2521.7,4.51556]
[1730459078786,4.48188,2522.1,2521.7,0.55]
[1730459079385,8.44696,2522.1,2521.7,0.55]
[1730459079785,4.48188,2522.1,2521.7,0.55]
[1730459081881,4.48188,2522.1,2521.7,4.51555]
[1730459082502,4.48188,2522.1,2521.7,4.51556]
[1730459082820,0.5169,2522.1,2521.7,0.55]
[1730459083007,3.96455,2522.4,2521.9,5.77738554]
[1730459083797,3.96455,2522.4,2521.9,3.96518]
[1730459084309,1.81220554,2522.7,2522.3,3.96455]
[1730459084540,3.96354,2523.0,2522.5,1.81220554]
[1730459084840,3.96346,2523.1,2522.6,3.96414]
[1730459085005,3.96331,2523.2,2522.6,3.96407]
[1730459085201,0.5169,2523.3,2522.7,1.89148124]
[1730459085447,0.5169,2523.3,2522.8,0.7611]
[1730459085607,1.81220554,2523.2,2522.8,0.7611]
[1730459085945,3.96339,2523.1,2522.7,3.96388]
[1730459086414,0.5169,2523.3,2522.7,3.96388]
[1730459086605,3.96324,2523.2,2522.7,7.92776]
[1730459086802,3.96324,2523.2,2522.7,3.96388]
[1730459087226,3.96324,2523.2,2522.7,8.86605831]
[1730459087942,3.96324,2523.2,2522.7,4.90213831]
[1730459088444,3.96324,2523.2,2522.8,3.96384]
[1730459088607,3.96324,2523.2,2522.7,4.90213831]
[1730459088608,3.96324,2523.2,2522.7,0.93825831]
[1730459088808,3.96324,2523.2,2522.7,4.90224831]
[1730459089240,7.92656,2523.2,2522.7,4.90224831]
[1730459089635,3.96338,2523.1,2522.7,0.93825831]
[1730459089823,3.96338,2523.1,2522.6,3.96413]
[1730459090160,0.5169,2523.0,2522.6,3.96413]
[1730459090449,4.48051,2523.0,2522.6,3.96413]
[1730459091657,4.48051,2523.0,2522.5,4.51431]
[1730459092134,4.48051,2523.0,2522.6,3.96415]
[1730459092334,4.48051,2523.0,2522.5,4.51431]
[1730459092335,3.9637,2522.9,2522.5,4.51431]
[1730459092755,3.9637,2522.9,2522.5,4.51424]
[1730459092960,4.48044,2523.0,2522.5,8.47848]
[1730459093272,4.48044,2523.0,2522.5,4.51424]
[1730459093631,4.48044,2523.0,2522.5,3.96424]
[1730459093632,3.96376,2522.9,2522.5,3.96424]
[1730459094063,9.288482,2523.0,2522.5,3.96424]
[1730459094271,5.324822,2523.0,2522.5,3.96424]
[1730459094583,5.324822,2523.0,2522.6,3.96415]
[1730459094935,4.48044,2523.0,2522.6,3.96415]
[1730459096982,4.48044,2523.0,2522.6,3.96406]
[1730459097158,0.5169,2523.0,2522.7,3.96399]
[1730459097479,0.5169,2523.0,2522.6,7.92814]
[1730459097637,0.5169,2523.0,2522.6,4.833284]
[1730459098867,4.48044,2523.0,2522.6,4.833284]
[1730459099361,4.48044,2523.0,2522.6,3.96406]
[1730459102071,4.48044,2523.0,2522.6,7.92815]
[1730459102391,0.1241306,2527.5,2522.4,0.7641]
[1730459102392,4.47998,2523.3,2522.8,0.7719]
[1730459102544,0.5169,2523.3,2522.8,4.73565]
[1730459102741,0.5169,2523.3,2522.8,5.605605]
[1730459102941,3.96325,2523.2,2522.8,5.605605]
[1730459103369,4.48002,2523.3,2522.9,3.96367]
[1730459103571,4.47997,2523.3,2522.8,4.73566]
[1730459103777,4.47997,2523.3,2522.9,3.96367]
[1730459104163,8.44312,2523.3,2522.9,3.96367]
[1730459104367,8.44312,2523.3,2522.8,8.69942]
[1730459104676,4.47997,2523.3,2522.9,3.96367]
[1730459104992,3.96323,2523.2,2522.8,4.73566]
[1730459105499,3.96323,2523.2,2522.8,8.69942]
[1730459105656,3.96323,2523.2,2522.8,4.73566]
[1730459106657,1.81202198,2523.1,2522.6,4.78001]
[1730459106856,5.77545198,2523.1,2522.7,3.96399]
[1730459107060,5.77545198,2523.1,2522.6,4.78001]
[1730459107260,3.96355,2523.0,2522.6,8.74409]
[1730459107482,3.96355,2523.0,2521.9,1.81202198]
[1730459107483,1.81202198,2522.7,2521.9,1.81202198]
[1730459107681,4.48119,2522.6,2522.2,3.96469]
[1730459107893,3.96395,2522.8,2522.3,3.96454]
[1730459107894,8.44485,2522.8,2522.3,3.96454]
[1730459108072,3.96405,2522.7,2522.3,3.96454]
[1730459108569,3.96405,2522.7,2522.1,3.96492]
[1730459108788,3.96405,2522.7,2522.2,0.474972]
[1730459109098,3.96405,2522.7,2522.3,3.96462]
[1730459109255,3.96416,2522.6,2522.2,3.96476]
[1730459110105,3.96416,2522.6,2522.1,3.96492]
[1730459110402,0.5169,2522.4,2522.1,3.96491]
[1730459111283,0.5169,2522.4,2522.1,3.96492]
[1730459111793,4.48145,2522.4,2522.0,0.7848]
[1730459111993,4.48145,2522.4,2521.9,3.96524]
[1730459112208,3.96507,2522.1,2521.6,41.96572]
[1730459112704,3.96479,2522.2,2521.7,3.96554]
[1730459112865,3.96495,2522.1,2521.7,3.96554]
[1730459113061,3.96481,2522.2,2521.7,3.96554]
[1730459113366,3.96481,2522.2,2521.6,38.0]
[1730459113582,3.96495,2522.1,2521.7,7.93104]
[1730459113799,3.96495,2522.1,2521.7,3.96549]
[1730459114276,7.93005,2522.1,2521.6,41.96572]
[1730459114489,3.96512,2522.0,2521.7,0.55]
[1730459115487,0.5169,2521.9,2521.6,38.0]
[1730459115665,4.48227,2521.9,2521.6,38.0]
[1730459115870,3.96544,2521.8,2521.6,38.0]
[1730459116074,4.48227,2521.9,2521.6,38.0]
[1730459116969,4.48219,2521.9,2521.6,38.0]
[1730459119811,0.5169,2521.9,2521.6,38.0]
[1730459120101,3.96552,2521.8,2521.6,38.0]
[1730459120308,3.96557,2521.7,2521.6,38.0]
[1730459123684,3.96557,2521.7,2521.6,38.0]
[1730459125122,4.48247,2521.7,2521.6,38.0]
[1730459125323,5.327269,2521.7,2521.6,38.0]
[1730459125685,4.48247,2521.7,2521.6,38.0]
[1730459131927,4.48247,2521.7,2521.6,38.0887291]
[1730459132228,6.29647647,2521.7,2521.6,38.0887291]
[1730459132619,4.48247,2521.7,2521.6,38.0887291]
[1730459133995,3.96557,2521.7,2521.6,38.0887291]
[1730459139147,5.77957647,2521.7,2521.6,38.0887291]
[1730459148140,3.96557,2521.7,2521.6,38.0887291]
[1730459153032,7.93043,2522.0,2521.6,38.0887291]
[1730459153358,3.96518,2522.0,2521.6,38.0887291]
[1730459154438,3.96529,2521.9,2521.6,38.0887291]
[1730459155472,1.81400647,2522.0,2521.6,38.0887291]
[1730459155631,5.77914647,2522.0,2521.6,42.0544291]
[1730459156352,3.96514,2522.0,2521.6,42.0544291]
[1730459157378,3.96499,2522.1,2521.6,42.0544291]
[1730459157660,3.96499,2522.1,2521.7,4.73355]
[1730459157832,3.96499,2522.1,2521.8,0.08227825]
[1730459158033,3.96512,2522.0,2521.7,0.768]
[1730459158279,3.96512,2522.0,2521.8,0.08227825]
[1730459158426,3.96512,2522.0,2521.7,0.768]
[1730459158625,3.96512,2522.0,2521.8,0.08227825]